bitfinex-derivatives/quotes_BTCF0:USTF0_20240905
["timestamp","ask_amount","ask_price","bid_price","bid_amount"]
[1725565262339,0.004,56101.0,56100.0,0.155739]
[1725565262536,0.004,56101.0,56100.0,0.0666]
[1725565262737,0.3648,56101.0,56093.0,0.3608]
[1725565262932,0.093149,56094.0,56090.0,0.1326]
[1725565263139,0.004,56091.0,56090.0,0.1326]
[1725565263326,0.004,56091.0,56090.0,0.0666]
[1725565263327,0.089154,56091.0,56090.0,0.0666]
[1725565263838,0.35,56092.0,56084.0,0.089165]
[1725565264141,0.35,56092.0,56089.0,0.089157]
[1725565264440,0.00426731,56094.0,56087.0,0.3608]
[1725565264640,0.004,56088.0,56087.0,0.3608]
[1725565264943,0.00026731,56094.0,56087.0,0.3608]
[1725565265129,0.00026731,56094.0,56087.0,0.3648]
[1725565265332,0.001,56091.0,56087.0,0.3648]
[1725565265532,0.001,56091.0,56090.0,0.089155]
[1725565265734,0.00026731,56094.0,56087.0,0.3648]
[1725565265934,0.005,56088.0,56087.0,0.45396]
[1725565266140,0.005,56088.0,56087.0,0.81476]
[1725565266443,0.004,56088.0,56087.0,0.20396]
[1725565266638,0.3608,56088.0,56087.0,0.004]
[1725565266833,0.7108,56090.0,56089.0,0.089157]
[1725565267243,0.3608,56090.0,56089.0,0.089157]
[1725565267931,0.00026731,56094.0,56093.0,0.089151]
[1725565268136,0.00026731,56094.0,56093.0,0.439151]
[1725565268339,0.00026731,56094.0,56087.0,0.004]
[1725565268340,0.71106731,56094.0,56087.0,0.004]
[1725565268533,0.449958,56088.0,56087.0,0.004]
[1725565268841,0.801958,56088.0,56087.0,0.004]
[1725565270146,0.451958,56088.0,56087.0,0.004]
[1725565270347,0.3628,56088.0,56087.0,0.004]
[1725565270551,0.3628,56088.0,56087.0,0.09316]
[1725565271146,0.002,56088.0,56087.0,1.05396]
[1725565271351,0.35,56089.0,56087.0,0.3648]
[1725565271544,0.089158,56088.0,56087.0,0.004]
[1725565272048,0.778316,56088.0,56087.0,0.004]
[1725565272242,0.089158,56088.0,56087.0,0.004]
[1725565272641,0.178316,56088.0,56087.0,0.004]
[1725565273036,0.089158,56088.0,56087.0,0.004]
[1725565274241,0.178316,56088.0,56087.0,0.004]
[1725565275648,0.71176001,56089.0,56078.0,0.11596952]
[1725565275844,0.089179,56075.0,56074.0,0.05316952]
[1725565276046,0.089182,56073.0,56071.0,0.05316952]
[1725565276348,0.089182,56073.0,56065.0,0.11746952]
[1725565276349,0.7128,56072.0,56065.0,0.11746952]
[1725565276647,0.801993,56066.0,56065.0,0.0643]
[1725565276949,0.891186,56066.0,56065.0,0.0643]
[1725565277741,0.801993,56066.0,56065.0,0.0643]
[1725565277945,0.801993,56066.0,56053.0,0.05316952]
[1725565277946,1.401993,56066.0,56053.0,0.05316952]
[1725565278152,1.401993,56066.0,56050.0,0.05316952]
[1725565278153,0.7128,56054.0,56050.0,0.05316952]
[1725565278358,0.7128,56054.0,56042.0,0.0048]
[1725565278359,0.352,56051.0,56038.0,0.0042]
[1725565278647,0.3608,56040.0,56032.0,0.18516952]
[1725565278850,0.3608,56040.0,56032.0,0.18106952]
[1725565278851,0.002,56033.0,56032.0,0.18106952]
[1725565279238,0.352,56033.0,56030.0,0.07116952]
[1725565279457,0.32013947,56035.0,56030.0,0.018]
[1725565279752,0.32013947,56035.0,56034.0,0.002]
[1725565280849,0.089242,56036.0,56034.0,0.012]
[1725565281055,0.00026757,56038.0,56035.0,0.002]
[1725565281347,0.00026757,56038.0,56036.0,0.089241]
[1725565281544,0.00026757,56038.0,56037.0,0.1375]
[1725565281744,0.3608,56045.0,56039.0,0.089236]
[1725565281945,0.7108,56053.0,56044.0,0.002]
[1725565282158,0.7108,56053.0,56052.0,0.002]
[1725565282353,0.7108,56053.0,56045.0,0.3608]
[1725565282552,0.002,56046.0,56045.0,0.3608]
[1725565282751,0.3628,56046.0,56044.0,0.002]
[1725565283051,0.3638,56045.0,56044.0,0.002]
[1725565283262,0.3638,56045.0,56044.0,0.00031]
[1725565283441,0.3638,56045.0,56040.0,0.00026757]
[1725565283442,0.089233,56041.0,56040.0,0.00026757]
[1725565283642,0.804033,56041.0,56040.0,0.00026757]
[1725565283941,1.404033,56041.0,56040.0,0.00026757]
[1725565284850,0.089239,56038.0,56035.0,0.05174709]
[1725565285057,0.35,56036.0,56033.0,0.07091854]
[1725565285555,0.35,56036.0,56035.0,0.07091854]
[1725565285753,0.35,56036.0,56033.0,0.07091854]
[1725565285754,0.089243,56035.0,56033.0,0.07091854]
[1725565285953,0.454043,56035.0,56031.0,0.07091854]
[1725565286144,0.454043,56035.0,56032.0,0.07091854]
[1725565286343,0.3648,56035.0,56034.0,0.00831]
[1725565286543,0.454043,56035.0,56034.0,0.00831]
[1725565286755,0.31120803,56035.0,56034.0,0.00831]
[1725565286958,0.004,56035.0,56034.0,0.00831]
[1725565287150,0.004,56035.0,56034.0,0.09690153]
[1725565287339,0.004,56035.0,56034.0,0.14431889]
[1725565287546,0.3649,56048.0,56034.0,0.74431889]
[1725565287757,0.00026757,56051.0,56047.0,0.07027682]
[1725565287945,0.00026757,56051.0,56049.0,0.07027682]
[1725565288144,0.00026757,56051.0,56049.0,0.15949682]
[1725565288341,0.00026757,56051.0,56050.0,0.07027682]
[1725565288655,0.00026757,56051.0,56050.0,0.49676879]
[1725565288951,0.00026757,56051.0,56050.0,1.10907879]
[1725565289356,0.00126757,56051.0,56050.0,2.71458877]
[1725565289554,0.00126757,56051.0,56050.0,2.77457136]
[1725565290059,0.00126757,56051.0,56050.0,1.27457136]
[1725565290355,0.00126757,56051.0,56050.0,1.27457337]
[1725565290560,0.00126757,56051.0,56050.0,1.27457343]
[1725565290753,0.00126757,56051.0,56050.0,1.10907879]
[1725565291058,0.00126757,56051.0,56050.0,1.19829779]
[1725565291445,0.00126757,56051.0,56050.0,0.59829779]
[1725565291752,0.089185,56072.0,56050.0,0.59829779]
[1725565291753,0.3608,56070.0,56050.0,1.27457167]
[1725565291957,0.0041,56067.0,56066.0,0.089193]
[1725565292152,0.3608,56079.0,56066.0,0.089193]
[1725565292153,0.3608,56079.0,56076.0,0.089177]
[1725565292348,0.3608,56079.0,56078.0,0.07045264]
[1725565293344,0.3608,56079.0,56074.0,0.0880658]
[1725565293657,0.3608,56079.0,56078.0,0.089174]
[1725565294354,0.3608,56079.0,56076.0,0.0880658]
[1725565294551,0.004,56077.0,56076.0,0.0880658]
[1725565294751,0.30332841,56079.0,56075.0,0.1772448]
[1725565295254,0.004,56076.0,56075.0,0.1772448]
[1725565295641,0.004,56076.0,56075.0,0.22510043]
[1725565295856,0.004,56076.0,56075.0,0.33077939]
[1725565296157,1.20503,56080.0,56079.0,0.089173]
[1725565296344,1.20411,56080.0,56079.0,0.58789443]
[1725565296552,1.20411,56080.0,56079.0,1.18789443]
[1725565296745,1.20411,56080.0,56079.0,1.29369734]
[1725565296955,1.11487861,56080.0,56079.0,1.29369734]
[1725565297658,1.11487861,56080.0,56079.0,1.29367525]
[1725565298047,1.11487861,56080.0,56079.0,1.18787234]
[1725565298351,1.11487861,56080.0,56079.0,0.13789934]
[1725565298562,1.20404961,56080.0,56079.0,0.002]
[1725565298750,1.20404961,56080.0,56079.0,0.003]
[1725565299549,0.82027861,56080.0,56079.0,0.003]
[1725565299859,0.82027861,56080.0,56079.0,1.092173]
[1725565300047,0.82027861,56080.0,56079.0,0.003]
[1725565300659,0.82027861,56080.0,56079.0,0.092173]
[1725565300957,0.82427861,56080.0,56079.0,0.091173]
[1725565301561,0.82027861,56080.0,56079.0,0.092173]
[1725565301868,0.82027861,56080.0,56079.0,0.692173]
[1725565302853,0.82027861,56080.0,56079.0,0.092173]
[1725565303155,0.82027861,56080.0,56079.0,1.542146]
[1725565303358,1.18107861,56080.0,56079.0,0.003]
[1725565304061,0.82027861,56080.0,56079.0,0.003]
[1725565304254,0.82027861,56080.0,56079.0,0.092173]
[1725565305566,0.82027861,56080.0,56079.0,0.692173]
[1725565306656,0.82027861,56080.0,56079.0,0.092173]
[1725565306852,0.82027861,56080.0,56079.0,0.003]
[1725565307057,1.67024961,56080.0,56079.0,0.003]
[1725565307270,1.75942061,56080.0,56079.0,0.003]
[1725565307458,1.67024961,56080.0,56079.0,0.003]
[1725565307862,0.849971,56080.0,56079.0,0.003]
[1725565308070,0.3608,56080.0,56079.0,0.003]
[1725565308653,0.3658,56080.0,56079.0,0.002]
[1725565308970,0.815771,56080.0,56079.0,0.002]
[1725565309267,0.005,56080.0,56079.0,0.002]
[1725565310067,0.005,56080.0,56079.0,0.091173]
[1725565310364,0.005,56080.0,56079.0,0.002]
[1725565310871,0.005,56080.0,56079.0,0.091173]
[1725565314964,0.005,56080.0,56079.0,0.491173]
[1725565315171,0.005,56080.0,56079.0,1.091173]
[1725565316070,0.005,56080.0,56079.0,1.041173]
[1725565317167,0.005,56080.0,56079.0,0.441173]
[1725565317470,0.005,56080.0,56079.0,0.091173]
[1725565317856,0.089192,56067.0,56056.0,0.00116]
[1725565318063,0.089192,56067.0,56052.0,0.0041]
[1725565318064,1.0736,56067.0,56052.0,0.0041]
[1725565318272,1.0736,56067.0,56042.0,0.37613187]
[1725565318273,0.089227,56045.0,56044.0,0.0041]
[1725565318473,0.089227,56045.0,56042.0,0.0042]
[1725565318474,0.43923,56043.0,56042.0,0.0042]
[1725565318671,0.80403,56043.0,56042.0,0.0042]
[1725565318969,0.089241,56036.0,56035.0,0.0048]
[1725565319170,0.089243,56035.0,56024.0,0.08926]
[1725565319469,0.3608,56031.0,56018.0,0.089269]
[1725565319867,0.3608,56031.0,56019.0,0.089268]
[1725565320263,0.3608,56031.0,56018.0,0.35]
[1725565320464,0.3608,56031.0,56019.0,0.3608]
[1725565320664,0.3608,56031.0,56016.0,0.089272]
[1725565320864,0.3608,56031.0,56017.0,0.089271]
[1725565321173,0.3608,56031.0,56014.0,0.0612]
[1725565321566,0.3648,56036.0,56014.0,0.0612]
[1725565321567,0.004,56036.0,56030.0,0.61796]
[1725565321875,0.004,56036.0,56035.0,0.35]
[1725565322070,0.004,56036.0,56035.0,0.95]
[1725565322473,0.00026757,56045.0,56035.0,1.08598881]
[1725565322676,0.00026757,56045.0,56042.0,0.07080883]
[1725565322973,0.36106757,56045.0,56041.0,0.07080883]
[1725565323164,0.36106757,56045.0,56042.0,1.5]
[1725565323369,0.36106757,56045.0,56036.0,0.35]
[1725565323370,0.004,56042.0,56036.0,0.07080883]
[1725565323569,0.004,56042.0,56037.0,0.07080883]
[1725565323770,0.093232,56042.0,56039.0,0.07080883]
[1725565323971,0.093232,56042.0,56038.0,0.07080883]
[1725565324277,0.004,56039.0,56038.0,0.16004683]
[1725565324470,0.3608,56047.0,56038.0,0.089238]
[1725565324669,0.3608,56042.0,56037.0,0.07074197]
[1725565324870,0.004,56038.0,56035.0,0.004]
[1725565325173,0.004,56036.0,56035.0,0.004]
[1725565325367,0.3608,56037.0,56035.0,0.004]
[1725565325564,0.004,56038.0,56035.0,0.004]
[1725565325771,0.29855998,56042.0,56037.0,0.002]
[1725565326076,0.001,56038.0,56037.0,0.09124]
[1725565326273,0.001,56038.0,56037.0,0.45204]
[1725565326473,0.00026757,56042.0,56037.0,0.002]
[1725565326676,0.00026757,56042.0,56041.0,0.002]
[1725565326979,0.08949957,56042.0,56041.0,0.002]
[1725565328377,0.00026757,56042.0,56041.0,0.002]
[1725565328784,0.09549957,56042.0,56041.0,0.002]
[1725565329385,0.09649957,56042.0,56041.0,0.002]
[1725565329578,0.45729957,56042.0,56041.0,0.002]
[1725565329880,0.36806757,56042.0,56041.0,0.002]
[1725565330381,0.45729957,56042.0,56041.0,0.002]
[1725565331271,0.45929957,56042.0,56041.0,0.002]
[1725565331782,0.45729957,56042.0,56041.0,0.002]
[1725565332377,0.45029957,56042.0,56041.0,0.002]
[1725565332574,0.45929957,56042.0,56041.0,0.002]
[1725565333686,0.54853157,56042.0,56041.0,0.002]
[1725565333882,1.55853157,56042.0,56041.0,0.002]
[1725565334080,0.267714,56038.0,56037.0,0.002]
[1725565334283,0.178498,56031.0,56012.0,0.0634]
[1725565334488,0.454049,56031.0,56012.0,0.4734]
[1725565334984,0.539298,56031.0,56012.0,0.4734]
[1725565335285,0.089268,56020.0,56017.0,0.087581]
[1725565335490,0.004,56018.0,56012.0,0.4734]
[1725565335677,0.004,56018.0,56017.0,0.499272]
[1725565335881,0.004,56018.0,56017.0,0.860072]
[1725565336178,0.004,56018.0,56017.0,1.460072]
[1725565336385,0.004,56018.0,56017.0,0.499272]
[1725565336681,0.004,56018.0,56017.0,1.097582]
[1725565336889,0.004,56018.0,56017.0,0.087582]
[1725565337284,0.004,56018.0,56006.0,0.48074197]
[1725565337486,0.004,56018.0,56000.0,0.3638]
[1725565337487,0.004,56007.0,56000.0,0.003]
[1725565337681,0.004,56007.0,56004.0,0.089292]
[1725565337987,0.089297,56001.0,56000.0,0.003]
[1725565338311,0.454097,56001.0,55989.0,0.00112]
[1725565338483,0.093315,55990.0,55989.0,0.00112]
[1725565338790,0.004,55990.0,55983.0,0.3608]
[1725565339188,0.004,55990.0,55983.0,0.450126]
[1725565339189,0.004,55984.0,55983.0,0.450126]
[1725565339896,0.004,55984.0,55983.0,1.048436]
[1725565340283,0.36106781,55995.0,55983.0,0.95911]
[1725565340485,0.36106781,55995.0,55983.0,0.36311]
[1725565340991,0.089329,55981.0,55969.0,0.0048]
[1725565341184,0.3608,55986.0,55971.0,0.3608]
[1725565341185,0.004,55972.0,55971.0,0.3608]
[1725565341586,0.3608,55979.0,55971.0,0.35923903]
[1725565341798,0.3608,55980.0,55971.0,0.35923903]
[1725565342092,0.00026781,55982.0,55979.0,0.002]
[1725565342591,0.08933,55981.0,55974.0,0.3608]
[1725565342795,0.002,55975.0,55974.0,0.3608]
[1725565343091,0.00026781,55982.0,55976.0,0.089336]
[1725565343281,0.00026781,55982.0,55981.0,0.002]
[1725565343483,0.41026781,55982.0,55981.0,0.002]
[1725565345584,0.00026781,55982.0,55981.0,0.002]
[1725565346393,0.00026781,55982.0,55981.0,0.28824071]
[1725565346697,0.7108,55995.0,55981.0,0.28824071]
[1725565346698,0.3608,55988.0,55983.0,0.089325]
[1725565346899,0.3608,55988.0,55981.0,0.19972968]
[1725565346900,0.71172,55995.0,55987.0,0.002]
[1725565347099,0.7108,55995.0,55994.0,0.002]
[1725565347393,0.7108,55995.0,55987.0,0.09005452]
[1725565347394,0.3608,55995.0,55990.0,0.3608]
[1725565347589,0.3608,55995.0,55992.0,0.08805452]
[1725565347787,0.3608,55995.0,55991.0,0.08805452]
[1725565347992,0.3608,55995.0,55994.0,0.089308]
[1725565348194,0.3608,55995.0,55993.0,0.08805452]
[1725565348399,0.002,55994.0,55990.0,0.08805452]
[1725565348699,0.35,55991.0,55988.0,0.08805452]
[1725565348899,0.002,55989.0,55988.0,0.08805452]
[1725565349093,0.002,55989.0,55988.0,0.22544374]
[1725565349402,0.002,55989.0,55988.0,0.58624374]
[1725565349593,0.002,55989.0,55988.0,0.33122307]
[1725565350000,0.002,55989.0,55988.0,0.69202307]
[1725565350303,0.002,55989.0,55988.0,0.58624374]
[1725565351001,0.002,55989.0,55988.0,0.99111369]
[1725565351405,0.002,55994.0,55993.0,0.08931]
[1725565351591,0.00026781,55997.0,55993.0,1.20978498]
[1725565351903,0.009,56008.0,55996.0,0.3628]
[1725565351904,0.0042,56008.0,55996.0,0.3628]
[1725565352100,0.0042,56014.0,56003.0,0.3608]
[1725565352295,0.089268,56019.0,56010.0,0.3608]
[1725565352503,0.089268,56019.0,56018.0,0.002]
[1725565352699,0.41,56020.0,56013.0,0.00026781]
[1725565353009,0.499267,56020.0,56019.0,0.002]
[1725565353323,1.220867,56020.0,56019.0,0.002]
[1725565354298,0.810867,56020.0,56019.0,0.002]
[1725565354601,0.810827,56020.0,56019.0,0.002]
[1725565354804,0.810747,56020.0,56019.0,0.002]
[1725565358704,0.810747,56020.0,56010.0,0.089281]
[1725565358918,0.7728,56011.0,56007.0,0.002]
[1725565359204,0.002,56008.0,56007.0,0.002]
[1725565359406,0.091286,56008.0,56007.0,0.002]
[1725565359797,0.002,56008.0,56007.0,0.002]
[1725565360000,0.0042,56023.0,56022.0,0.089264]
[1725565360205,0.3608,56031.0,56022.0,0.3608]
[1725565360405,0.3608,56031.0,56017.0,0.00026781]
[1725565360406,0.3608,56031.0,56023.0,0.002]
[1725565360607,0.089253,56029.0,56023.0,0.091262]
[1725565360801,0.3608,56031.0,56023.0,0.452062]
[1725565361504,0.3608,56031.0,56023.0,1.052062]
[1725565362102,0.3608,56026.0,56023.0,0.002]
[1725565362407,0.3608,56026.0,56023.0,0.091262]
[1725565363199,0.3608,56031.0,56023.0,0.452062]
[1725565364006,0.3608,56026.0,56023.0,0.002]
[1725565364203,0.08952781,56024.0,56023.0,0.002]
[1725565364398,0.45032781,56024.0,56023.0,0.002]
[1725565365005,0.53958781,56024.0,56023.0,0.002]
[1725565366100,0.45032781,56024.0,56023.0,0.002]
[1725565366299,0.36106781,56024.0,56023.0,0.002]
[1725565366704,0.00026781,56024.0,56023.0,0.002]
[1725565367302,0.08952781,56024.0,56023.0,0.002]
[1725565367704,0.17878781,56024.0,56023.0,0.002]
[1725565368011,0.178524,56023.0,56022.0,0.002]
[1725565368210,0.541324,56023.0,56022.0,0.002]
[1725565368511,1.052062,56023.0,56022.0,0.002]
[1725565368905,0.452062,56023.0,56022.0,0.002]
[1725565369311,0.08927,56018.0,56012.0,0.089278]
[1725565369513,0.45207,56018.0,56012.0,0.089278]
[1725565369709,0.45207,56018.0,56008.0,0.089286]
[1725565370012,0.3628,56018.0,56000.0,0.0132]
[1725565370214,0.002,56001.0,55999.0,0.0593]
[1725565370412,0.002,56000.0,55999.0,0.1486]
[1725565370610,0.002,56001.0,55999.0,0.1486]
[1725565370611,0.002,56001.0,56000.0,0.089299]
[1725565370805,0.002,56001.0,56000.0,0.691299]
[1725565371606,0.002,56001.0,56000.0,0.780598]
[1725565371812,0.00026781,56006.0,56005.0,0.089291]
[1725565372115,0.3608,56016.0,56014.0,0.089276]
[1725565372305,0.3608,56021.0,56005.0,0.3628]
[1725565372306,0.089253,56029.0,56016.0,0.089272]
[1725565372609,0.009,56028.0,56026.0,0.445857]
[1725565372804,0.009,56028.0,56026.0,0.3566]
[1725565373210,0.089256,56027.0,56026.0,0.3566]
[1725565373913,0.089261,56024.0,56021.0,0.00026781]
[1725565374413,0.452064,56022.0,56021.0,0.00026781]
[1725565374820,0.541328,56022.0,56021.0,0.00026781]
[1725565375115,0.452064,56022.0,56021.0,0.00026781]
[1725565375822,1.052064,56022.0,56021.0,0.00026781]
[1725565376014,1.141328,56022.0,56021.0,0.00026781]
[1725565376215,1.052064,56022.0,56021.0,0.00026781]
[1725565376608,0.541328,56022.0,56021.0,0.00026781]
[1725565376904,1.141328,56022.0,56021.0,0.00026781]
[1725565377309,1.052064,56022.0,56021.0,0.00026781]
[1725565377505,0.452064,56022.0,56021.0,0.00026781]
[1725565377704,0.541328,56022.0,56021.0,0.00026781]
[1725565377917,0.452064,56022.0,56021.0,0.00026781]
[1725565378109,1.141328,56022.0,56021.0,0.00026781]
[1725565378511,0.541328,56022.0,56021.0,0.00026781]
[1725565379024,0.178546,56016.0,56015.0,0.002]
[1725565379221,0.889346,56016.0,56015.0,0.002]
[1725565379518,0.891346,56016.0,56015.0,0.002]
[1725565380224,0.802073,56016.0,56015.0,0.002]
[1725565380423,0.452073,56016.0,56015.0,0.002]
[1725565381412,0.541346,56016.0,56015.0,0.002]
[1725565381613,0.089298,56001.0,55994.0,0.06]
[1725565381815,0.089298,56001.0,55999.0,0.089299]
[1725565381816,0.0893,56000.0,55999.0,0.089299]
[1725565382013,0.0893,56000.0,55992.0,0.3608]
[1725565382014,0.089306,55996.0,55995.0,0.089305]
[1725565382713,0.091301,55999.0,55998.0,0.089302]
[1725565382912,0.091301,55999.0,55998.0,0.091302]
[1725565383515,0.002,55999.0,55998.0,0.091302]
[1725565385020,0.002,55999.0,55998.0,0.780604]
[1725565385417,0.00026781,56005.0,56004.0,0.089292]
[1725565385717,0.00026781,56005.0,56004.0,0.450092]
[1725565386524,0.009,56022.0,56004.0,1.3108]
[1725565386823,0.3608,56027.0,56021.0,0.002]
[1725565386824,0.08926,56025.0,56021.0,0.002]
[1725565387020,0.450048,56032.0,56023.0,0.450062]
[1725565387021,0.36184001,56032.0,56023.0,0.450062]
[1725565387221,0.3608,56032.0,56023.0,0.450062]
[1725565387419,0.3608,56032.0,56020.0,0.089265]
[1725565387420,0.089254,56028.0,56020.0,0.089265]
[1725565387614,0.089254,56028.0,56018.0,0.4855]
[1725565387615,0.089254,56028.0,56018.0,0.48576781]
[1725565387820,0.00026781,56030.0,56025.0,0.3608]
[1725565388029,0.00026781,56030.0,56029.0,0.002]
[1725565389219,0.08951881,56030.0,56029.0,0.002]
[1725565389524,0.00026781,56030.0,56029.0,0.002]
[1725565389711,0.00026781,56030.0,56029.0,0.091252]
[1725565389917,0.00026781,56030.0,56029.0,0.002]
[1725565390116,0.08951881,56030.0,56029.0,0.002]
[1725565390620,0.00026781,56030.0,56029.0,0.002]
[1725565391315,0.36106781,56030.0,56029.0,0.002]
[1725565391623,0.00026781,56030.0,56029.0,0.002]
[1725565392515,0.00026781,56030.0,56029.0,0.091252]
[1725565392916,0.00026781,56030.0,56029.0,0.002]
[1725565393120,0.08951881,56030.0,56029.0,0.002]
[1725565393325,0.52876981,56030.0,56029.0,0.002]
[1725565393527,0.43951881,56030.0,56029.0,0.002]
[1725565394230,0.43951881,56030.0,56018.0,0.00026781]
[1725565394231,0.089268,56019.0,56018.0,0.00026781]
[1725565394530,0.180536,56019.0,56018.0,0.00026781]
[1725565395227,0.780536,56019.0,56018.0,0.00026781]
[1725565395431,0.780536,56019.0,56001.0,0.009]
[1725565395432,0.089295,56002.0,56001.0,0.009]
[1725565395625,0.089297,56001.0,55999.0,0.3608]
[1725565396327,0.7108,56000.0,55984.0,0.3698]
[1725565396531,0.091313,55991.0,55990.0,0.018]
[1725565397335,0.180626,55991.0,55990.0,0.018]
[1725565397522,0.69158081,55991.0,55973.0,0.009]
[1725565397718,0.3648,55974.0,55967.0,0.08919]
[1725565397930,0.3648,55968.0,55967.0,6e-05]
[1725565398124,0.7708,55968.0,55967.0,6e-05]
[1725565398339,0.089349,55969.0,55967.0,6e-05]
[1725565398537,0.3648,55974.0,55967.0,6e-05]
[1725565398944,0.3608,55968.0,55967.0,6e-05]
[1725565399734,0.089349,55969.0,55965.0,0.3608]
[1725565399940,0.004,55966.0,55965.0,0.3608]
[1725565402248,0.004,55966.0,55965.0,0.9608]
[1725565402549,0.004,55966.0,55965.0,0.3608]
[1725565403750,0.3648,55966.0,55958.0,0.001]
[1725565404045,0.3648,55966.0,55944.0,0.3697]
[1725565404046,0.089366,55958.0,55949.0,0.0042]
[1725565404249,0.36506805,55959.0,55950.0,0.089378]
[1725565404451,0.36106805,55959.0,55950.0,0.089378]
[1725565405036,0.36106805,55959.0,55949.0,0.05299591]
[1725565405037,0.36106805,55959.0,55951.0,0.089377]
[1725565405349,0.29846487,55959.0,55954.0,0.3608]
[1725565406140,0.29846487,55959.0,55944.0,0.77192]
[1725565406141,1.1316,55955.0,55944.0,0.00112]
[1725565406340,1.1316,55955.0,55932.0,0.0048]
[1725565406341,0.089402,55935.0,55934.0,0.0042]
[1725565406646,0.089402,55935.0,55922.0,0.0604]
[1725565406647,0.08942,55924.0,55922.0,0.0604]
[1725565406843,0.08942,55924.0,55921.0,0.05293488]
[1725565406844,0.089423,55922.0,55921.0,0.05293488]
[1725565407037,0.089423,55922.0,55908.0,0.15252639]
[1725565407038,0.089428,55919.0,55914.0,0.04293488]
[1725565407240,0.004,55923.0,55905.0,0.365]
[1725565407241,0.3648,55915.0,55905.0,0.365]
[1725565407441,0.004,55923.0,55910.0,0.3608]
[1725565407442,0.00026805,55916.0,55910.0,0.3608]
[1725565407651,0.3608,55913.0,55906.0,0.0658]
[1725565407843,0.004,55907.0,55906.0,0.4758]
[1725565408049,0.00026805,55916.0,55906.0,1.6124]
[1725565408248,0.00026805,55916.0,55913.0,0.3608]
[1725565408653,0.00026805,55916.0,55914.0,0.53652]
[1725565409250,0.00026805,55916.0,55915.0,0.53652]
[1725565409550,0.00026805,55916.0,55906.0,0.004]
[1725565409551,0.36106805,55916.0,55906.0,0.004]
[1725565409754,0.36106805,55916.0,55910.0,0.089441]
[1725565409948,0.36106805,55916.0,55911.0,0.45024]
[1725565409949,0.00026805,55916.0,55911.0,0.45024]
[1725565410252,0.00026805,55916.0,55914.0,0.089435]
[1725565410446,0.00026805,55916.0,55915.0,0.89732]
[1725565410755,0.00026805,55916.0,55915.0,1.49732]
[1725565411147,0.0042,55929.0,55915.0,1.49732]
[1725565411344,0.0041,55936.0,55928.0,0.3608]
[1725565411345,0.3608,55934.0,55928.0,0.3608]
[1725565411757,0.41,55935.0,55928.0,0.3608]
[1725565412352,0.3608,55934.0,55928.0,0.3608]
[1725565412542,0.00026831,55937.0,55928.0,0.3608]
[1725565412747,0.00026831,55937.0,55929.0,0.3608]
[1725565413051,0.00026831,55937.0,55927.0,0.089414]
[1725565413251,0.004,55928.0,55927.0,0.089414]
[1725565413659,0.004,55928.0,55927.0,1.287714]
[1725565414543,0.004,55928.0,55927.0,0.151314]
[1725565415157,0.004,55928.0,55927.0,1.287714]
[1725565415362,0.00026831,55937.0,55936.0,0.089401]
[1725565415563,0.00026831,55937.0,55936.0,0.450201]
[1725565417068,0.00026831,55937.0,55936.0,0.360501]
[1725565417253,0.00026831,55937.0,55936.0,0.449902]
[1725565420162,0.3608,55947.0,55941.0,0.089391]
[1725565420347,0.3608,55947.0,55936.0,0.360501]
[1725565420552,0.3608,55947.0,55946.0,0.089385]
[1725565420848,0.3608,55957.0,55942.0,0.3608]
[1725565421049,0.002,55943.0,55942.0,0.450191]
[1725565421252,0.00026831,55955.0,55943.0,0.00026831]
[1725565421461,0.00026831,55955.0,55954.0,0.089372]
[1725565421959,0.35,55963.0,55953.0,0.3608]
[1725565422167,0.002,55954.0,55953.0,0.3608]
[1725565422362,0.002,55954.0,55953.0,0.450174]
[1725565423469,0.36106805,55959.0,55953.0,0.67457161]
[1725565423665,0.36106805,55959.0,55953.0,0.53836954]
[1725565423963,0.36106805,55959.0,55954.0,0.089371]
[1725565424162,0.36106805,55959.0,55956.0,0.08819554]
[1725565424362,0.36106805,55959.0,55957.0,0.22439953]
[1725565424557,0.36106805,55959.0,55957.0,0.08819554]
[1725565424761,0.36106805,55959.0,55958.0,0.17756154]
[1725565425267,0.36106805,55959.0,55958.0,0.13620249]
[1725565425855,2.02591605,55959.0,55958.0,0.13620249]
[1725565426059,0.089386,55946.0,55943.0,0.00026831]
[1725565426266,0.3608,55944.0,55943.0,0.00026831]
[1725565426456,0.002,55944.0,55943.0,0.00026831]
[1725565426657,0.002,55944.0,55943.0,0.08965831]
[1725565426862,0.002,55944.0,55943.0,0.00026831]
[1725565427466,0.002,55944.0,55943.0,0.08965831]
[1725565427774,0.30913022,55948.0,55947.0,0.089383]
[1725565428968,0.35,55951.0,55944.0,0.17788371]
[1725565429171,0.002,55945.0,55944.0,0.17788571]
[1725565430463,0.30727664,55951.0,55943.0,0.00026831]
[1725565430664,0.30727664,55951.0,55945.0,0.08876876]
[1725565430967,0.3608,55948.0,55947.0,0.089383]
[1725565431655,0.3608,55948.0,55944.0,0.08876876]
[1725565431856,0.3608,55948.0,55945.0,0.089385]
[1725565432072,0.450182,55948.0,55945.0,0.089385]
[1725565433169,0.3608,55948.0,55945.0,0.08876876]
[1725565433367,0.3608,55948.0,55947.0,0.089383]
[1725565433569,0.00026805,55959.0,55947.0,0.089383]
[1725565433766,0.00026805,55959.0,55955.0,0.08890348]
[1725565433969,0.08963205,55959.0,55958.0,0.10668418]
[1725565434267,0.08963205,55959.0,55957.0,0.10668418]
[1725565434268,0.089366,55958.0,55957.0,0.10668418]